bitfinex/quotes_ETHUSD_20250603
["timestamp","ask_amount","ask_price","bid_price","bid_amount"]
[1748974985452,10.10691463,2613.8,2613.5,4.3826986]
[1748974985674,3.82607162,2613.7,2613.5,4.3826986]
[1748974986295,10.10690115,2613.8,2613.5,4.3826986]
[1748974986483,6.281,2613.8,2613.5,4.3826986]
[1748974986683,4.58084821,2613.7,2613.5,4.3826986]
[1748974987918,3.82614018,2613.6,2613.1,4.3826986]
[1748974988124,3.82686306,2613.2,2612.9,4.75811295]
[1748974988295,3.82679787,2613.2,2612.9,0.37541435]
[1748974988496,3.82679787,2613.2,2612.7,4.3826986]
[1748974989111,3.82666259,2613.3,2612.9,4.3826986]
[1748974989631,3.82657942,2613.3,2612.9,4.3826986]
[1748974989986,3.82674302,2613.2,2612.9,4.3826986]
[1748974990427,6.28,2613.4,2612.9,4.76780363]
[1748974990608,3.8269597,2613.1,2612.9,4.76780363]
[1748974991214,3.82688595,2613.1,2612.7,4.3826986]
[1748974991809,1.1948,2613.3,2612.9,4.3826986]
[1748974992009,6.28,2613.4,2613.2,4.3826986]
[1748974992208,7.57421542,2613.4,2613.2,4.3826986]
[1748974992591,1.29421542,2613.4,2613.2,4.3826986]
[1748974992797,10.10636304,2613.5,2613.2,4.3826986]
[1748974993427,3.82646494,2613.4,2613.2,4.3826986]
[1748974996142,3.82637119,2613.5,2613.2,4.3826986]
[1748974996532,10.10521164,2613.6,2613.4,4.3826986]
[1748974997041,0.75475,2613.7,2613.4,4.3826986]
[1748974997251,7.921,2613.8,2613.6,4.3826986]
[1748974997399,3.8257657,2613.9,2613.6,4.3826986]
[1748974997606,6.279,2613.9,2613.6,4.3826986]
[1748974997942,10.10473057,2613.9,2613.6,4.3826986]
[1748974998841,6.279,2613.9,2613.6,4.3826986]
[1748974999049,7.78468117,2613.9,2613.6,4.3826986]
[1748975000546,11.61039731,2613.9,2613.6,4.3826986]
[1748975001485,3.82585663,2613.8,2613.6,4.3826986]
[1748975002479,11.61048546,2613.9,2613.6,4.3826986]
[1748975003263,1.1075,2614.2,2613.8,4.3826986]
[1748975003587,3.82532213,2614.2,2614.0,4.3826986]
[1748975003723,3.82518134,2614.3,2614.0,4.3826986]
[1748975004041,11.143035,2614.3,2614.0,4.3826986]
[1748975004762,7.31785366,2614.3,2614.0,4.3826986]
[1748975004929,11.14298527,2614.3,2614.0,4.3826986]
[1748975005131,6.278,2614.3,2614.0,4.3826986]
[1748975005325,1.1075,2614.6,2614.2,4.3826986]
[1748975005528,3.82460291,2614.7,2614.4,4.3826986]
[1748975005809,3.82453053,2614.7,2614.6,4.3826986]
[1748975005929,3.82453053,2614.7,2614.4,4.3826986]
[1748975006677,3.82469769,2614.6,2614.4,4.3826986]
[1748975006882,3.82453053,2614.7,2614.4,4.3826986]
[1748975007176,3.8247024,2614.6,2614.4,4.3826986]
[1748975007384,3.8248231,2614.5,2614.2,4.3826986]
[1748975007585,3.8251157,2614.3,2614.2,4.3826986]
[1748975007933,3.82499924,2614.4,2614.2,4.3826986]
[1748975008287,3.82473357,2614.6,2614.2,4.3826986]
[1748975008774,3.82460985,2614.7,2614.2,4.3826986]
[1748975009070,3.82468851,2614.6,2614.2,4.3826986]
[1748975010139,3.82449046,2614.8,2614.3,4.3826986]
[1748975010140,3.82460469,2614.7,2614.3,4.3826986]
[1748975010476,3.82469581,2614.6,2614.3,4.3826986]
[1748975012051,3.82457656,2614.7,2614.3,4.3826986]
[1748975012873,12.89092085,2614.9,2614.3,4.3826986]
[1748975012874,3.82446518,2614.8,2614.3,4.3826986]
[1748975013078,10.10046518,2614.8,2614.3,4.3826986]
[1748975013579,3.82446518,2614.8,2614.3,4.3826986]
[1748975014288,11.24989377,2614.9,2614.5,4.3826986]
[1748975014453,3.82448766,2614.8,2614.5,4.3826986]
[1748975014779,3.82453053,2614.7,2614.3,4.3826986]
[1748975015364,3.82440936,2614.8,2614.3,4.3826986]
[1748975015562,3.82464554,2614.7,2614.3,4.3826986]
[1748975015999,3.82480356,2614.6,2614.1,4.3826986]
[1748975016165,3.82490087,2614.5,2614.1,4.3826986]
[1748975016482,3.82474628,2614.6,2614.1,4.3826986]
[1748975017082,3.82462269,2614.7,2614.1,4.3826986]
[1748975017271,3.82453053,2614.7,2614.1,4.3826986]
[1748975017690,3.82469793,2614.6,2614.1,4.3826986]
[1748975017864,3.82461655,2614.7,2614.3,4.3826986]
[1748975018066,3.82445831,2614.8,2614.3,4.3826986]
[1748975018375,5.58811271,2614.8,2614.3,4.3826986]
[1748975018996,5.588081,2614.8,2614.5,4.3826986]
[1748975019302,5.588081,2614.8,2614.3,4.3826986]
[1748975019623,1.7636544,2614.8,2614.3,4.3826986]
[1748975019787,10.11924752,2614.9,2614.3,4.3826986]
[1748975020165,6.295,2614.9,2614.3,4.3826986]
[1748975020566,6.295,2614.9,2614.3,8.20779086]
[1748975020766,6.295,2614.9,2614.3,4.3826986]
[1748975020980,0.02,2614.9,2614.3,4.3826986]
[1748975021890,3.84430115,2614.9,2614.3,4.3826986]
[1748975022202,3.82445557,2614.8,2614.3,4.3826986]
[1748975024680,3.82459141,2614.7,2614.3,4.3826986]
[1748975024874,3.82475544,2614.6,2614.1,4.3826986]
[1748975025176,0.55442025,2614.8,2614.1,4.3826986]
[1748975025374,3.82462518,2614.7,2614.1,4.3826986]
[1748975025902,3.82445325,2614.8,2614.1,4.3826986]
[1748975026109,3.82445325,2614.8,2614.3,4.3826986]
[1748975026308,4.2363223,2614.8,2614.3,4.3826986]
[1748975026706,0.41186905,2614.8,2614.3,4.3826986]
[1748975027323,3.84434472,2614.9,2614.3,4.3826986]
[1748975027490,3.84425262,2614.9,2614.3,4.3826986]
[1748975027694,0.02,2614.9,2614.3,4.3826986]
[1748975028002,0.02,2614.9,2614.3,8.20775371]
[1748975028400,3.8243943,2614.8,2614.3,4.3826986]
[1748975029515,3.82440475,2614.8,2614.3,4.3826986]
[1748975029926,3.84431045,2614.9,2614.3,4.3826986]
[1748975030102,1.53370852,2614.9,2614.3,4.3826986]
[1748975030306,5.35795922,2614.9,2614.3,4.3826986]
[1748975031214,1.53370852,2614.9,2614.3,4.3826986]
[1748975031425,0.02,2614.9,2614.3,4.3826986]
[1748975032327,3.84425983,2614.9,2614.3,4.3826986]
[1748975034540,3.82438709,2614.8,2614.3,4.3826986]
[1748975035449,3.84432136,2614.9,2614.3,4.3826986]
[1748975036948,0.02,2614.9,2614.3,4.3826986]
[1748975037443,0.02,2614.9,2614.5,4.3826986]
[1748975037845,0.02,2614.9,2614.7,4.3826986]
[1748975039844,0.02,2614.9,2614.5,4.3826986]
[1748975040761,0.02,2614.9,2614.7,4.3826986]
[1748975041954,0.02,2614.9,2614.7,4.58171823]
[1748975043357,0.02,2614.9,2614.7,4.3826986]
[1748975044037,0.02,2614.9,2614.7,4.57949699]
[1748975044758,0.02,2614.9,2614.7,4.3826986]
[1748975046153,0.02,2614.9,2614.5,4.3826986]
[1748975046739,0.02,2614.9,2614.7,4.3826986]
[1748975048464,0.02,2614.9,2614.7,8.20722621]
[1748975048844,0.02,2614.9,2614.8,3.82438427]
[1748975049042,0.02,2614.9,2614.8,11.82438427]
[1748975050370,1.1767,2616.1,2614.9,8.55]
[1748975050572,1.1767,2616.3,2615.7,4.3826986]
[1748975050782,1.1767,2616.3,2615.7,8.2056939]
[1748975051074,1.1767,2616.3,2615.7,4.3826986]
[1748975051236,3.82182288,2616.6,2615.8,16.75562084]
[1748975051435,3.82167618,2616.7,2615.8,16.75562084]
[1748975051831,10.09067618,2616.7,2615.8,16.75562084]
[1748975052056,6.269,2616.7,2615.8,16.75562084]
[1748975052257,10.09072729,2616.7,2615.8,16.75562084]
[1748975052458,3.8217749,2616.6,2615.8,16.75562084]
[1748975052789,0.64296363,2616.6,2616.5,4.3826986]
[1748975052990,1.1767,2616.8,2616.5,4.3826986]
[1748975053280,4.99816703,2616.8,2616.1,4.3826986]
[1748975053480,4.99818943,2616.8,2616.3,4.3826986]
[1748975053884,4.99816459,2616.8,2616.3,4.3826986]
[1748975054181,0.50181646,2616.7,2616.3,4.3826986]
[1748975054581,3.82198188,2616.5,2616.1,4.3826986]
[1748975054781,0.02,2616.9,2615.7,4.33301194]
[1748975054782,3.82209059,2616.4,2615.7,14.5286986]
[1748975054955,4.94839059,2616.4,2615.7,14.5286986]
[1748975055581,3.82219164,2616.3,2615.7,14.5286986]
[1748975055893,0.87705951,2616.2,2615.7,14.5286986]
[1748975056174,4.69946203,2616.2,2615.7,14.5286986]
[1748975056695,3.82248385,2616.1,2615.7,0.37927886]
[1748975056897,3.82252485,2616.1,2615.7,0.37927886]
[1748975057038,3.82272931,2616.0,2615.5,4.3826986]
[1748975057241,0.38227293,2615.9,2615.5,4.3826986]
[1748975058150,4.20506513,2615.9,2615.5,4.3826986]
[1748975059014,0.38227293,2615.9,2615.3,4.3826986]
[1748975059150,0.38227293,2615.9,2615.2,8.0]
[1748975059484,5.01189891,2615.5,2614.9,4.3826986]
[1748975059801,1.1884,2615.5,2614.9,0.51]
[1748975059994,3.82387085,2615.2,2614.7,4.3826986]
[1748975060196,3.82356929,2615.4,2614.9,4.3826986]
[1748975060412,1.1884,2616.0,2615.3,4.3826986]
[1748975060689,1.12778965,2615.9,2615.2,4.3826986]
[1748975060900,3.82331242,2615.6,2615.2,4.3826986]
[1748975061448,3.82316504,2615.7,2615.2,4.3826986]
[1748975063301,3.82304385,2615.8,2615.4,4.3826986]
[1748975063603,3.82300297,2615.8,2615.4,4.3826986]
[1748975063800,0.87736039,2615.7,2615.2,4.3826986]
[1748975063988,3.82336832,2615.5,2615.2,4.3826986]
[1748975064149,3.82336832,2615.5,2615.1,8.0]
[1748975064350,3.82359729,2615.4,2614.7,1.636]
[1748975064550,3.82359729,2615.4,2614.8,8.0]
[1748975064551,3.82375784,2615.3,2614.8,8.0]
[1748975065253,3.82340962,2615.5,2614.9,4.3826986]
[1748975065254,3.82357876,2615.4,2614.9,4.3826986]
[1748975065453,4.6982976,2615.4,2614.9,4.3826986]
[1748975066866,0.87471884,2615.4,2615.1,4.3826986]
[1748975068569,4.69822994,2615.4,2615.1,4.3826986]
[1748975068968,3.82367045,2615.3,2614.9,4.3826986]
[1748975069263,4.67585597,2615.3,2614.9,4.3826986]
[1748975069751,0.85218552,2615.3,2614.9,4.3826986]
[1748975070999,4.67586652,2615.3,2614.9,4.3826986]
[1748975072200,0.85218552,2615.3,2614.9,4.3826986]
[1748975073724,4.67584515,2615.3,2614.9,4.3826986]
[1748975075469,3.82423571,2615.0,2614.7,0.39096284]
[1748975075805,3.82423571,2615.0,2614.5,8.0]
[1748975076238,3.82423571,2615.0,2614.6,4.3826986]
[1748975076439,3.82399815,2615.1,2614.6,4.3826986]
[1748975076741,4.46238765,2615.1,2614.6,4.3826986]
[1748975076952,4.46238765,2615.1,2614.6,4.7701385]
[1748975077350,0.6383895,2615.1,2614.6,4.7701385]
[1748975077536,4.46234477,2615.1,2614.6,4.7701385]
[1748975080313,0.6383895,2615.1,2614.6,4.7701385]
[1748975080813,3.82413792,2615.0,2614.6,4.7701385]
[1748975081255,4.46240485,2615.1,2614.6,4.7701385]
[1748975083747,0.6383895,2615.1,2614.6,4.7701385]
[1748975084750,4.46233653,2615.1,2614.6,4.7701385]
[1748975089453,3.82426366,2614.9,2614.6,4.7701385]
[1748975089952,3.82453053,2614.7,2614.6,0.3874399]
[1748975090153,3.82453053,2614.7,2614.3,1.634]
[1748975090519,3.82461989,2614.7,2614.3,2.01672099]
[1748975091460,3.82482836,2614.5,2614.2,4.3826986]
[1748975091616,3.82506022,2614.4,2614.1,0.02]
[1748975091820,0.76498144,2614.4,2614.1,0.02]
[1748975092022,3.82465319,2614.7,2614.1,8.02]
[1748975092232,3.82493681,2614.5,2614.1,8.02]
[1748975095665,3.82474919,2614.6,2614.1,8.02]
[1748975096052,3.82459245,2614.7,2614.1,8.02]
[1748975096361,3.82479782,2614.6,2614.1,8.02]
[1748975096667,11.23142438,2614.8,2614.4,4.3826986]
[1748975096863,3.82461475,2614.7,2614.4,4.3826986]
[1748975097226,3.82468955,2614.6,2614.2,4.3826986]
[1748975097427,11.23144601,2614.8,2614.2,4.3826986]
[1748975097735,3.82471556,2614.6,2614.2,4.3826986]
[1748975097935,3.82471556,2614.6,2614.1,0.02]
[1748975097936,1.50561616,2614.6,2614.1,8.02]
[1748975098148,3.82478889,2614.6,2614.1,8.02]
[1748975098743,3.82478889,2614.6,2614.2,4.3826986]
[1748975099759,3.82453053,2614.7,2614.2,4.3826986]
[1748975099962,3.82483487,2614.5,2614.2,4.3826986]
[1748975100466,3.8249396,2614.5,2614.1,8.02]
[1748975100656,1.1466,2614.4,2614.1,8.02]
[1748975101672,4.97157432,2614.4,2614.1,8.02]
[1748975101977,1.1466,2614.4,2614.1,8.02]
[1748975102476,3.82513279,2614.3,2614.1,0.02]
[1748975102680,4.32243531,2614.2,2614.1,0.02]
[1748975103242,10.09113279,2614.3,2614.1,0.02]
[1748975103243,6.266,2614.3,2614.1,0.02]
[1748975103447,0.76496208,2614.5,2614.2,4.3826986]
[1748975103448,6.266,2614.5,2614.2,4.3826986]
[1748975106068,10.09083749,2614.5,2614.2,4.3826986]
[1748975106266,6.266,2614.5,2614.2,4.3826986]
[1748975107075,3.82471765,2614.6,2614.2,4.3826986]
[1748975107295,10.96774901,2614.6,2614.2,4.3826986]
[1748975107747,3.8248292,2614.5,2614.2,4.3826986]
[1748975108383,10.96676828,2614.6,2614.2,4.3826986]
[1748975108689,4.70076828,2614.6,2614.2,4.3826986]
[1748975108889,10.96676828,2614.6,2614.2,4.3826986]
[1748975109463,3.82483929,2614.5,2614.2,4.3826986]
[1748975109876,3.82503811,2614.4,2614.2,4.3826986]
[1748975110071,3.82503811,2614.4,2614.1,0.02]
[1748975111489,10.96676669,2614.6,2614.1,0.02]
[1748975111854,3.82488119,2614.5,2614.1,0.02]
[1748975112351,3.8249733,2614.4,2614.1,0.02]
[1748975112874,3.8248832,2614.5,2614.1,0.02]
[1748975114091,7.14203136,2614.6,2614.1,0.02]
[1748975114291,10.9668151,2614.6,2614.2,4.3826986]
[1748975114491,1.47914067,2614.5,2614.2,4.3826986]
[1748975114855,5.30396674,2614.5,2614.2,4.3826986]
[1748975115451,3.82500513,2614.4,2614.1,0.02]
[1748975115670,3.82500513,2614.4,2614.0,4.3826986]
[1748975116388,1.47914067,2614.5,2614.0,4.3826986]
[1748975116594,10.09074489,2614.6,2614.0,4.3826986]
[1748975116957,1.1157,2615.1,2614.5,4.3826986]
[1748975117185,3.82435311,2614.9,2614.5,4.3826986]
[1748975117498,3.81098311,2614.9,2614.5,4.3826986]
[1748975117794,3.8242439,2614.9,2614.5,4.3826986]
[1748975118357,10.09017495,2615.0,2614.5,4.3826986]
[1748975118553,1.50298747,2615.0,2614.5,4.3826986]
[1748975118759,6.266,2615.0,2614.7,4.3826986]
[1748975119702,10.0901502,2615.0,2614.7,4.3826986]
[1748975120289,3.82424024,2614.9,2614.5,4.3826986]
[1748975120672,3.82440939,2614.8,2614.5,4.3826986]
[1748975120878,1.101,2614.9,2614.3,4.3826986]
[1748975121209,3.8247568,2614.6,2614.1,6.0166986]
[1748975122300,1.8377,2614.9,2614.1,6.0166986]
[1748975122301,3.82461129,2614.7,2614.1,6.0166986]
[1748975122610,3.82446896,2614.8,2614.3,4.3826986]
[1748975122999,10.08946896,2614.8,2614.3,4.3826986]
[1748975123310,3.8245452,2614.7,2614.3,4.3826986]
[1748975123472,1.1737,2614.6,2614.2,4.3826986]
[1748975123805,11.26320042,2614.8,2614.2,4.3826986]
[1748975124160,6.265,2614.7,2614.4,4.3826986]
[1748975125276,10.08957695,2614.7,2614.4,4.3826986]
[1748975125594,7.84742786,2614.7,2614.4,4.3826986]
[1748975126316,6.265,2614.8,2614.4,4.3826986]
[1748975126477,4.89869335,2615.2,2614.4,4.3826986]
[1748975126677,3.82404595,2615.1,2614.6,4.3826986]
[1748975127077,10.08904595,2615.1,2614.6,4.3826986]
[1748975127816,3.8241779,2615.0,2614.6,4.3826986]
[1748975128188,3.82431965,2614.9,2614.6,4.3826986]
[1748975128382,3.82431965,2614.9,2614.4,4.3826986]
[1748975128923,3.82416128,2615.0,2614.4,4.3826986]
[1748975129683,6.265,2615.1,2614.4,4.3826986]
[1748975129937,6.265,2615.1,2614.6,4.3826986]
[1748975130131,11.20542929,2615.1,2614.6,4.3826986]
[1748975130421,3.82412073,2615.0,2614.6,4.3826986]
[1748975131935,3.82426152,2614.9,2614.6,4.3826986]
[1748975132311,3.8242225,2615.0,2614.6,4.3826986]
[1748975133131,3.82426811,2614.9,2614.6,4.3826986]
[1748975133829,7.38135804,2615.1,2614.6,4.3826986]
[1748975134232,3.82412002,2615.0,2614.6,4.3826986]
[1748975135238,3.82424378,2614.9,2614.6,4.3826986]
[1748975135418,7.38135804,2615.1,2614.6,4.3826986]
[1748975135600,3.82422386,2615.0,2614.6,4.3826986]
[1748975136133,3.82427207,2614.9,2614.6,4.3826986]
[1748975136719,3.82417043,2615.0,2614.6,4.3826986]
[1748975137256,4.94033137,2615.1,2614.6,4.3826986]
[1748975137547,3.82435076,2614.9,2614.6,4.3826986]
[1748975137748,3.82417762,2615.0,2614.6,4.3826986]
[1748975137916,3.82434744,2614.9,2614.6,4.3826986]
[1748975140747,4.80811819,2615.0,2614.6,4.3826986]
[1748975140954,0.9839322,2615.0,2614.6,4.3826986]
[1748975141119,11.20335884,2615.1,2614.6,4.3826986]
[1748975141446,1.634,2615.4,2615.0,4.3826986]
[1748975141447,1.1031,2615.4,2615.0,4.3826986]
[1748975141648,3.82375983,2615.3,2615.0,4.3826986]
[1748975143156,3.82375513,2615.3,2615.0,4.3826986]
[1748975144060,3.82381764,2615.2,2615.0,4.3826986]
[1748975144249,4.96540692,2615.4,2614.6,8.0]
[1748975144431,3.82410561,2615.0,2614.6,8.0]
[1748975146249,3.8243152,2614.9,2614.6,8.0]
[1748975146760,4.95566199,2615.0,2614.6,8.0]
[1748975147074,1.1315,2615.0,2614.6,8.0]
[1748975147225,3.82449175,2614.8,2614.3,13.7946986]
[1748975147424,3.82449175,2614.8,2614.4,8.0]
[1748975148160,5.32868193,2614.8,2614.3,1.632]
[1748975148360,3.82453331,2614.7,2614.4,8.0]
[1748975148863,1.5042337,2614.8,2614.1,4.3826986]
[1748975149038,3.82484252,2614.5,2614.1,4.3826986]
[1748975149436,3.82492865,2614.5,2614.1,4.3826986]
[1748975149623,3.82500808,2614.4,2614.0,0.38119042]
[1748975149824,3.82507581,2614.4,2614.0,8.0]
[1748975150361,3.82507581,2614.4,2613.9,4.3826986]
[1748975150362,3.82518714,2614.3,2613.9,4.3826986]
[1748975151078,3.8254888,2614.1,2613.6,0.38601183]
[1748975151315,3.8254888,2614.1,2613.7,8.0]
[1748975151455,3.82533147,2614.2,2613.7,8.0]
[1748975151659,3.82533147,2614.2,2613.7,12.3826986]
[1748975152059,1.1527,2614.3,2613.7,12.3826986]
[1748975152060,4.97789626,2614.3,2613.7,12.3826986]
[1748975152259,3.82527337,2614.2,2613.7,12.3826986]
[1748975152494,6.5226926,2614.3,2613.7,12.3826986]
[1748975154005,1.175,2614.7,2614.1,4.3826986]
[1748975154214,3.82475269,2614.6,2614.3,4.3826986]
[1748975154367,12.3826986,2615.3,2613.7,3.82589229]
[1748975154368,1.175,2614.9,2614.5,4.3826986]
[1748975154564,4.99925035,2614.9,2614.5,4.3826986]
[1748975154977,1.175,2614.9,2614.5,4.3826986]
[1748975155331,6.262,2614.9,2614.5,4.3826986]
[1748975156029,10.0862859,2614.9,2614.5,4.3826986]
[1748975156185,6.262,2614.9,2614.5,4.3826986]
[1748975156719,10.08626404,2614.9,2614.5,4.3826986]
[1748975157723,6.262,2614.9,2614.5,4.3826986]
[1748975158105,10.08625706,2614.9,2614.5,4.3826986]
[1748975158313,11.22931391,2615.1,2614.5,4.3826986]
[1748975159082,6.262,2615.1,2614.5,4.3826986]
[1748975159900,10.08596319,2615.1,2614.5,4.3826986]
[1748975160102,11.20667951,2615.1,2614.5,4.3826986]
[1748975160298,3.82409477,2615.0,2614.5,4.3826986]
[1748975162628,6.261,2615.0,2614.5,4.3826986]
[1748975163694,1.12071632,2615.1,2614.5,4.3826986]
[1748975163891,6.261,2615.0,2614.5,4.3826986]
[1748975164388,3.82423802,2614.9,2614.5,4.3826986]
[1748975164817,3.82430038,2614.9,2614.5,4.3826986]
[1748975165014,3.82417075,2615.0,2614.5,4.3826986]
[1748975165329,10.84998912,2615.0,2614.5,4.3826986]
[1748975165843,3.82425237,2614.9,2614.5,4.3826986]
[1748975168631,3.82425237,2614.9,2614.2,3.82517714]
[1748975168632,1.1155,2614.9,2614.4,8.0]
[1748975168817,3.82467411,2614.7,2614.2,8.0]
[1748975169129,3.82468224,2614.6,2614.2,8.0]
[1748975169730,4.63864471,2614.8,2614.2,8.0]
[1748975170431,4.63864471,2614.8,2614.4,8.0]
[1748975170631,0.81413184,2614.8,2614.4,8.0]
[1748975170831,6.261,2614.9,2614.5,4.3826986]
[1748975172088,3.8242816,2614.9,2614.5,4.3826986]
[1748975172715,10.08517767,2615.0,2614.5,4.3826986]
[1748975172922,6.261,2615.0,2614.5,4.3826986]
[1748975173491,6.26,2615.0,2614.5,4.3826986]
[1748975173695,3.82401594,2615.1,2614.5,4.3826986]
[1748975173935,2.7747,2615.3,2614.7,4.3826986]
[1748975174093,3.82435726,2614.9,2614.4,8.0]
[1748975174597,3.82438897,2614.8,2614.4,8.0]
[1748975174801,3.82459678,2614.7,2614.4,8.0]
[1748975175432,3.82446668,2614.8,2614.4,8.0]
[1748975175728,3.82458689,2614.7,2614.2,8.0]
[1748975175927,10.8493449,2614.8,2614.2,8.0]
[1748975176250,10.08446978,2614.8,2614.2,8.0]
[1748975176434,3.82455559,2614.7,2614.2,8.0]
[1748975177427,10.08447592,2614.8,2614.2,8.0]
[1748975178612,3.82460245,2614.7,2614.2,8.0]
[1748975178945,3.82463319,2614.7,2614.2,8.0]
[1748975179309,3.82453053,2614.7,2614.2,8.0]
[1748975180222,1.12101305,2614.7,2614.2,8.0]
[1748975180406,3.82460495,2614.7,2614.2,8.0]
[1748975181442,3.82469537,2614.6,2614.2,8.0]
[1748975181852,3.82459986,2614.7,2614.2,8.0]
[1748975182575,3.82463655,2614.7,2614.2,8.0]
[1748975182731,3.82479453,2614.6,2614.2,8.0]
[1748975182932,3.82460333,2614.7,2614.2,8.0]
[1748975184147,10.08443937,2614.8,2614.2,8.0]
[1748975184348,6.26,2614.8,2614.4,8.0]
[1748975184546,7.38097584,2614.8,2614.4,8.0]
[1748975184985,3.82454153,2614.7,2614.1,4.3826986]
[1748975185185,11.20542947,2614.8,2614.1,8.20809794]
[1748975187137,4.94542947,2614.8,2614.1,8.20809794]
[1748975187338,6.259,2614.7,2614.1,8.20809794]
[1748975187571,3.82473104,2614.6,2614.1,4.3826986]
[1748975188467,10.08361576,2614.7,2614.1,4.3826986]
[1748975189773,6.259,2614.7,2614.1,8.20809504]
[1748975190135,6.259,2614.7,2614.1,8.20805074]
[1748975190435,1.0271,2615.1,2614.6,8.0]
[1748975190635,6.74409233,2615.0,2614.6,8.0]
[1748975191134,10.56820028,2615.0,2614.6,8.0]
[1748975191539,4.30920028,2615.0,2614.6,8.0]
[1748975191881,6.259,2615.0,2614.6,8.0]
[1748975192184,10.08300273,2615.1,2614.6,8.0]
[1748975194281,3.82411046,2615.0,2614.6,8.0]
[1748975194995,3.82474758,2614.6,2614.1,8.0]
[1748975195411,6.258,2614.7,2614.1,8.0]
[1748975195706,3.82469252,2614.6,2614.1,8.0]
[1748975195902,10.08260795,2614.7,2614.0,3.03640982]
[1748975196467,3.82467949,2614.6,2614.0,3.03640982]
[1748975197762,10.08260246,2614.7,2614.0,3.03640982]
[1748975197970,10.08255852,2614.7,2614.0,7.23980334]
[1748975198492,10.08255852,2614.7,2614.2,4.3826986]
[1748975198657,11.58354883,2614.7,2614.2,4.3826986]
[1748975200080,11.5835301,2614.7,2614.2,4.3826986]
[1748975200286,7.75899031,2614.7,2614.2,4.3826986]
[1748975203277,6.258,2614.7,2614.2,4.3826986]
[1748975203771,10.08254675,2614.7,2614.2,4.3826986]
[1748975203973,6.258,2614.7,2614.2,4.3826986]
[1748975204813,10.08254132,2614.7,2614.2,4.3826986]
[1748975205712,10.08255279,2614.7,2614.0,4.7606159]
[1748975205892,3.82496899,2614.5,2614.0,0.3779173]
[1748975206096,5.92950271,2614.6,2614.1,8.0]
[1748975206569,5.92948714,2614.6,2614.1,8.0]
[1748975206910,3.82501346,2614.4,2614.1,8.0]
[1748975207114,3.82488779,2614.5,2614.1,8.0]
[1748975207465,3.82500145,2614.4,2614.1,8.0]
[1748975207674,3.82490456,2614.5,2614.1,8.0]
[1748975208332,3.82564474,2614.0,2613.6,4.3826986]
[1748975208483,3.82519622,2614.3,2613.6,4.3826986]
[1748975208832,2.10475528,2614.6,2613.6,4.3826986]
[1748975208983,3.82534709,2614.2,2613.6,4.3826986]
[1748975209385,3.82548318,2614.1,2613.8,4.3826986]
[1748975209626,3.82548318,2614.1,2613.5,1.629]
[1748975209627,3.82548318,2614.1,2613.6,4.3826986]
[1748975209931,1.0455,2614.2,2613.4,12.3826986]
[1748975210100,5.4281986,2614.2,2613.2,4.3826986]
[1748975210282,1.1051,2613.8,2613.1,1.649]
[1748975210480,3.82643212,2613.5,2613.1,1.649]
[1748975210823,3.82622209,2613.6,2613.1,1.649]
[1748975211314,11.18906789,2613.8,2613.1,1.649]
[1748975211315,7.3631,2613.8,2613.1,6.0316986]
[1748975211494,4.56237671,2613.7,2613.1,6.0316986]
[1748975212080,1.1051,2614.5,2613.3,4.3826986]
[1748975212280,15.3621,2614.4,2613.5,4.3826986]
[1748975212527,3.82561874,2614.0,2613.5,4.3826986]
[1748975212677,6.257,2613.9,2613.5,4.3826986]
[1748975213605,10.08270948,2613.9,2613.5,4.3826986]
[1748975214317,10.08273022,2613.9,2613.5,4.3826986]
[1748975214683,3.82573022,2613.9,2613.5,4.3826986]
[1748975214921,3.82571931,2613.9,2613.5,4.3826986]
[1748975216445,3.82592457,2613.8,2613.5,4.3826986]
[1748975216747,3.82587534,2613.8,2613.3,4.3826986]
[1748975216907,3.82618024,2613.6,2613.1,4.4026986]
[1748975217094,3.82618024,2613.6,2613.1,0.02]
[1748975217296,3.82618024,2613.6,2613.1,4.4026986]
[1748975217496,3.82606844,2613.7,2613.1,4.4026986]
[1748975217897,3.82606844,2613.7,2613.3,4.3826986]
[1748975220331,3.82593388,2613.8,2613.3,4.3826986]
[1748975220533,3.82601725,2613.7,2613.3,4.3826986]
[1748975221801,3.8259938,2613.7,2613.3,4.3826986]
[1748975222133,3.8260689,2613.7,2613.3,4.3826986]
[1748975223303,3.82593508,2613.8,2613.3,4.3826986]
[1748975223920,5.21669467,2613.9,2613.5,4.3826986]
[1748975223921,6.258,2613.9,2613.5,4.3826986]
[1748975224208,3.82571357,2613.9,2613.5,4.3826986]
[1748975224407,3.82585111,2613.8,2613.5,4.3826986]
[1748975225099,3.82578454,2613.9,2613.5,4.3826986]
[1748975225299,3.8256139,2614.0,2613.5,4.3826986]
[1748975225505,3.82549938,2614.1,2613.5,4.3826986]
[1748975225703,3.82560847,2614.0,2613.5,4.3826986]
[1748975228487,3.82552365,2614.1,2613.5,4.3826986]
[1748975228651,3.82557222,2614.0,2613.7,4.3826986]
[1748975228977,3.82571626,2613.9,2613.5,4.3826986]
[1748975229489,6.258,2614.1,2613.5,4.3826986]
[1748975229772,3.82589842,2613.8,2613.5,4.3826986]
[1748975230235,10.08344583,2614.1,2613.3,4.3826986]
[1748975230434,3.82609664,2613.7,2613.3,4.3826986]
[1748975230647,3.82588395,2613.8,2613.3,4.3826986]
[1748975231051,6.258,2614.1,2613.2,8.0]
[1748975231052,3.82547009,2614.1,2613.2,8.0]
[1748975231256,3.82563976,2614.0,2613.5,4.3826986]
[1748975232629,3.82571665,2613.9,2613.5,4.3826986]
[1748975234846,3.82566197,2614.0,2613.3,8.20927341]
[1748975235245,3.82566197,2614.0,2613.3,4.3826986]
[1748975235246,3.82562894,2614.0,2613.3,4.3826986]
[1748975236031,3.82575124,2613.9,2613.3,4.3826986]
[1748975236236,3.82586377,2613.8,2613.3,4.3826986]
[1748975236969,1.0923,2613.9,2613.1,0.02]
[1748975237173,4.91803481,2613.9,2613.1,0.02]
[1748975237373,3.82594966,2613.8,2613.2,4.3826986]
[1748975237538,3.82600331,2613.7,2613.2,4.3826986]
[1748975238075,3.82590668,2613.8,2613.2,4.3826986]
[1748975238260,10.08278524,2613.9,2613.2,8.20936114]
[1748975238465,3.82586002,2613.8,2613.2,4.3826986]
[1748975240658,3.82607629,2613.7,2613.3,8.0]
[1748975240877,3.82615348,2613.6,2613.1,1.648]
[1748975241576,3.8260677,2613.7,2613.1,1.648]
[1748975245288,4.87821584,2613.8,2613.2,8.0]
[1748975245688,4.87821584,2613.8,2613.2,12.3826986]
[1748975245852,3.82591584,2613.8,2613.2,12.3826986]
[1748975249783,3.82571184,2613.9,2613.2,16.20933312]